bitfinex-derivatives/quotes_BTCF0:USTF0_20210708
["timestamp","ask_amount","ask_price","bid_price","bid_amount"]
[1625733854881,0.24057544,32349.0,32348.0,0.24057544]
[1625733855031,0.74057544,32349.0,32348.0,0.24057544]
[1625733855182,1.74057544,32349.0,32348.0,0.24057544]
[1625733855335,1.74057544,32349.0,32348.0,0.25332974]
[1625733856682,0.74057544,32349.0,32348.0,0.25332974]
[1625733856848,1.24057544,32349.0,32348.0,0.0127543]
[1625733857003,0.24057544,32349.0,32348.0,0.0127543]
[1625733857132,0.24057544,32349.0,32348.0,0.1]
[1625733857431,0.24057544,32349.0,32348.0,0.11275364]
[1625733858861,0.24057544,32349.0,32348.0,0.81911308]
[1625733859161,0.24057544,32354.0,32348.0,0.81911308]
[1625733859309,0.24057544,32354.0,32348.0,1.0549595]
[1625733859459,0.24057544,32354.0,32349.0,0.00911034]
[1625733859608,0.24057544,32354.0,32349.0,0.04007685]
[1625733859761,0.24057544,32354.0,32350.0,0.47088924]
[1625733859921,0.24057544,32354.0,32353.0,0.1]
[1625733860376,0.24057544,32354.0,32353.0,0.57743922]
[1625733860968,0.24057544,32354.0,32353.0,0.81801466]
[1625733861713,0.24057544,32354.0,32353.0,0.83622913]
[1625733865613,0.24057544,32358.0,32353.0,0.83622913]
[1625733865916,0.24057544,32358.0,32354.0,0.03096303]
[1625733866214,0.24057544,32358.0,32355.0,0.463709]
[1625733866365,0.24057544,32358.0,32355.0,0.737869]
[1625733866682,0.24057544,32358.0,32356.0,0.01274938]
[1625733866816,0.24057544,32358.0,32357.0,0.1]
[1625733866965,0.24057544,32358.0,32357.0,0.34057544]
[1625733867267,0.24057544,32358.0,32357.0,0.35332488]
[1625733869618,0.24057544,32361.0,32357.0,0.35332488]
[1625733869762,0.24057544,32361.0,32357.0,0.81453288]
[1625733870048,0.24057544,32361.0,32358.0,0.01274836]
[1625733870348,0.24057544,32361.0,32358.0,0.03095897]
[1625733870501,0.24057544,32361.0,32359.0,0.458446]
[1625733870648,0.24057544,32361.0,32360.0,0.1]
[1625733870948,0.24057544,32361.0,32360.0,0.57928123]
[1625733871101,0.24057544,32361.0,32360.0,0.81985667]
[1625733871701,0.51175293,32369.0,32360.0,0.81985667]
[1625733871851,0.24057544,32369.0,32360.0,0.81985667]
[1625733872001,0.24057544,32369.0,32361.0,0.01274648]
[1625733872300,0.24057544,32369.0,32362.0,0.453191]
[1625733872452,0.24057544,32369.0,32368.0,0.1]
[1625733872602,0.24057544,32369.0,32368.0,0.44859]
[1625733872757,0.24057544,32369.0,32368.0,0.46133602]
[1625733872901,0.24057544,32369.0,32368.0,0.92403302]
[1625733873077,0.24057544,32369.0,32368.0,1.4051839]
[1625733874270,0.63273411,32372.0,32368.0,1.4051839]
[1625733874404,0.63299471,32374.0,32368.0,1.4051839]
[1625733874562,0.63299471,32374.0,32368.0,1.3051839]
[1625733874709,0.63297425,32375.0,32369.0,0.0127443]
[1625733874855,0.09052387,32377.0,32369.0,0.0127443]
[1625733875012,0.09052387,32377.0,32376.0,0.24057544]
[1625733875165,0.54242048,32378.0,32376.0,0.47208544]
[1625733875166,0.09052058,32378.0,32376.0,0.47208544]
[1625733875304,1.11404435,32379.0,32376.0,0.47208544]
[1625733875454,1.11404435,32379.0,32377.0,0.00364112]
[1625733875608,0.27141093,32378.0,32377.0,0.00364112]
[1625733875755,0.09053054,32378.0,32377.0,0.00364112]
[1625733875904,3.34988444,32378.0,32377.0,0.00364112]
[1625733876208,2.34988444,32378.0,32377.0,0.00364112]
[1625733876356,1.2653919,32378.0,32377.0,0.10364112]
[1625733876506,0.54249693,32378.0,32377.0,0.10364112]
[1625733876806,1.26537334,32378.0,32377.0,0.10364112]
[1625733877258,2.34970768,32378.0,32377.0,0.00364112]
[1625733878398,6.06154895,32378.0,32377.0,0.00364112]
[1625733878532,6.56154895,32378.0,32377.0,0.00364112]
[1625733879133,6.80212439,32378.0,32369.0,0.00364211]
[1625733879359,0.54296697,32370.0,32369.0,0.00364211]
[1625733879509,0.78447697,32370.0,32369.0,0.00364211]
[1625733879810,1.14622487,32370.0,32369.0,0.00364211]
[1625733880109,1.14622487,32370.0,32369.0,0.10364211]
[1625733880487,0.78430718,32370.0,32369.0,0.10364211]
[1625733880863,2.59347609,32370.0,32369.0,0.10364211]
[1625733881165,1.74858636,32370.0,32369.0,0.10364211]
[1625733881313,2.83458115,32370.0,32369.0,0.10364211]
[1625733882065,2.83458115,32370.0,32369.0,0.00364211]
[1625733883417,4.10164958,32370.0,32369.0,0.00364211]
[1625733883567,5.10164958,32370.0,32369.0,0.00364211]
[1625733884922,4.10164958,32370.0,32369.0,0.00364211]
[1625733885223,2.83458115,32370.0,32369.0,0.10364211]
[1625733885523,1.74858636,32370.0,32369.0,0.10364211]
[1625733885973,0.78337262,32370.0,32369.0,0.44089211]
[1625733886133,0.54279718,32370.0,32369.0,0.44089211]
[1625733886274,0.63406103,32373.0,32369.0,0.90159711]
[1625733886423,0.09067797,32374.0,32369.0,0.90159711]
[1625733886576,0.09067797,32374.0,32372.0,3.9969]
[1625733886723,0.63402171,32375.0,32372.0,3.9969]
[1625733886875,0.09067833,32374.0,32373.0,0.46213838]
[1625733887025,0.09067833,32374.0,32373.0,0.56213838]
[1625733887173,0.09067833,32374.0,32373.0,1.04328926]
[1625733887174,0.90538564,32374.0,32373.0,1.04328926]
[1625733887323,0.27178393,32374.0,32373.0,1.04328926]
[1625733887774,0.54317638,32374.0,32373.0,1.04328926]
[1625733888749,0.63382131,32374.0,32373.0,1.04328926]
[1625733888898,0.2717739,32374.0,32373.0,1.04328926]
[1625733889499,0.63370632,32374.0,32373.0,1.04328926]
[1625733890548,0.54306139,32374.0,32373.0,1.04328926]
[1625733890849,0.63367958,32374.0,32373.0,1.04328926]
[1625733891225,0.27174716,32374.0,32373.0,1.04328926]
[1625733891527,0.63367236,32374.0,32373.0,1.04328926]
[1625733892126,0.27174716,32374.0,32373.0,1.04328926]
[1625733892429,0.09061819,32374.0,32373.0,1.04328926]
[1625733893179,0.63358885,32374.0,32373.0,1.04328926]
[1625733893329,0.2716687,32374.0,32373.0,1.04328926]
[1625733893780,0.09061819,32374.0,32373.0,1.04328926]
[1625733894080,0.27167509,32374.0,32373.0,1.04328926]
[1625733894681,0.27167509,32374.0,32373.0,1.30603926]
[1625733894982,0.09061819,32374.0,32373.0,1.30603926]
[1625733896108,0.27165839,32374.0,32373.0,1.30603926]
[1625733896257,0.63351599,32375.0,32373.0,1.30603926]
[1625733896557,0.09060929,32375.0,32374.0,0.00364131]
[1625733896858,0.63352397,32376.0,32374.0,0.46734631]
[1625733897158,0.63352397,32376.0,32374.0,0.56734631]
[1625733897308,0.09059507,32375.0,32374.0,0.563705]
[1625733897458,0.2716077,32375.0,32374.0,0.463705]
[1625733897609,0.2716077,32375.0,32374.0,0.4764498]
[1625733897909,0.2716077,32375.0,32374.0,0.5764498]
[1625733898134,0.09059507,32375.0,32374.0,0.5764498]
[1625733898436,0.27160176,32376.0,32374.0,0.5764498]
[1625733898736,0.09059004,32377.0,32374.0,0.5764498]
[1625733898886,0.87397952,32378.0,32375.0,0.09644107]
[1625733899041,0.63340408,32378.0,32375.0,0.10554375]
[1625733899187,0.54263616,32379.0,32375.0,0.10554375]
[1625733899188,0.63336283,32379.0,32376.0,0.47829665]
[1625733899336,0.09054961,32381.0,32377.0,0.58115088]
[1625733899486,0.09054961,32381.0,32377.0,0.5938928]
[1625733899641,0.09054545,32382.0,32377.0,0.5938928]
[1625733899786,0.09054545,32382.0,32378.0,0.47421062]
[1625733899936,1.26546761,32384.0,32378.0,0.47421062]
[1625733899937,0.27145103,32384.0,32378.0,0.47421062]
[1625733900086,0.27145103,32384.0,32381.0,0.1]
[1625733900235,0.27145103,32384.0,32381.0,0.3611]
[1625733900537,0.09053892,32385.0,32382.0,0.47470632]
[1625733900686,0.8736231,32386.0,32384.0,4.5811]
[1625733900837,0.8736231,32386.0,32384.0,4.6811]
[1625733900986,0.09053726,32385.0,32384.0,4.6811]
[1625733901286,0.09053726,32385.0,32384.0,5.06225088]
[1625733901438,0.27142319,32385.0,32384.0,5.53212299]
[1625733901586,0.63302115,32385.0,32384.0,5.63212299]
[1625733901888,0.54248389,32385.0,32384.0,5.63212299]
[1625733902339,0.63301922,32385.0,32384.0,5.63212299]
[1625733902790,0.54248389,32385.0,32384.0,5.63212299]
[1625733903018,0.63301952,32385.0,32384.0,5.63212299]
[1625733903692,0.09053563,32385.0,32384.0,5.63212299]
[1625733904444,0.51186873,32386.0,32384.0,5.63212299]
[1625733904594,0.51186873,32386.0,32385.0,0.0912]
[1625733904747,0.87329518,32386.0,32385.0,0.0912]
[1625733904894,0.87329518,32386.0,32385.0,0.55257721]
[1625733905271,0.87329518,32386.0,32385.0,0.65257721]
[1625733905420,0.78280302,32386.0,32385.0,0.65257721]
[1625733905569,0.51183486,32386.0,32385.0,0.65257721]
[1625733905871,0.87312677,32386.0,32385.0,0.65257721]
[1625733906025,0.87312677,32386.0,32385.0,0.56137721]
[1625733906326,0.78266848,32386.0,32385.0,0.56137721]
[1625733906547,1.50489002,32386.0,32385.0,0.56137721]
[1625733906855,3.58857288,32386.0,32385.0,0.00364021]
[1625733906997,5.3528952,32386.0,32385.0,0.00364021]
[1625733907304,7.03843048,32386.0,32378.0,0.00364115]
[1625733907448,0.54218072,32379.0,32378.0,0.00364115]
[1625733907597,6.77616072,32379.0,32378.0,0.00364115]
[1625733907747,7.49865401,32379.0,32368.0,0.24057544]
[1625733907897,0.63277724,32374.0,32368.0,0.24057544]
[1625733908047,1.0,32370.0,32350.0,0.2929]
[1625733908203,6.17933,32370.0,32369.0,0.01274657]
[1625733908499,6.17933,32370.0,32360.0,0.00910799]
[1625733908500,6.17933,32370.0,32360.0,0.47515107]
[1625733908648,6.17933,32370.0,32369.0,0.46483402]
[1625733908798,6.17933,32370.0,32369.0,0.00364202]
[1625733908952,6.81211938,32370.0,32369.0,0.00364202]
[1625733909099,7.44368263,32370.0,32369.0,0.00364202]
[1625733909248,7.68425807,32370.0,32362.0,0.24057544]
[1625733909398,8.40598439,32370.0,32362.0,0.24057544]
[1625733909550,7.86409318,32370.0,32369.0,0.00364256]
[1625733909853,8.40599591,32370.0,32363.0,0.47582005]
[1625733909998,8.40599591,32370.0,32369.0,0.00364256]
[1625733910301,8.40599591,32370.0,32364.0,0.00364256]
[1625733910602,0.63154631,32368.0,32364.0,0.00364256]
[1625733911052,0.09017725,32367.0,32365.0,0.465858]
[1625733911353,0.24057544,32366.0,32365.0,0.465858]
[1625733911656,0.24057544,32366.0,32365.0,0.46950065]
[1625733911803,0.24057544,32366.0,32365.0,0.10364265]
[1625733911952,0.24057544,32366.0,32365.0,0.56203265]
[1625733912408,0.24057544,32366.0,32365.0,0.56203264]
[1625733913005,0.24057544,32366.0,32365.0,0.46203264]
[1625733913154,1.55345544,32366.0,32365.0,0.46203264]
[1625733913679,1.64355647,32366.0,32365.0,0.46203264]
[1625733913829,1.55345544,32366.0,32365.0,0.46203264]
[1625733913978,0.55345544,32366.0,32365.0,0.46203264]
[1625733915330,1.18339244,32366.0,32365.0,0.46203264]
[1625733915630,0.82355689,32366.0,32365.0,0.46203264]
[1625733915929,1.82355689,32366.0,32365.0,0.46203264]
[1625733916236,1.82355689,32366.0,32365.0,0.45839]
[1625733916381,1.82355689,32366.0,32365.0,0.46203274]
[1625733917435,2.0927189,32366.0,32365.0,0.46203274]
[1625733918786,1.8234307,32366.0,32365.0,0.46203274]
[1625733919011,1.64342301,32366.0,32365.0,0.46203274]
[1625733919161,0.64342301,32366.0,32365.0,0.46203274]
[1625733919313,0.24057544,32366.0,32365.0,0.46203274]
[1625733919476,0.24057544,32366.0,32365.0,0.56203274]
[1625733919912,0.24057544,32366.0,32365.0,0.58024659]
[1625733920211,0.24057544,32366.0,32365.0,0.57113852]
[1625733920513,0.24057544,32366.0,32365.0,0.56203274]
[1625733921563,0.75154836,32366.0,32365.0,0.46203274]
[1625733922012,2.11141243,32366.0,32365.0,0.46203274]
[1625733922161,2.11141243,32366.0,32365.0,0.00364274]
[1625733922613,2.11141243,32366.0,32363.0,0.0036429]
[1625733922762,2.02132485,32366.0,32363.0,0.0036429]
[1625733922914,2.02132485,32366.0,32365.0,0.00364295]
[1625733923062,2.02132485,32366.0,32364.0,0.00364295]
[1625733923363,0.27016354,32365.0,32360.0,0.46429295]
[1625733923515,0.51073898,32365.0,32360.0,0.46429295]
[1625733923663,0.87065617,32365.0,32361.0,0.00364301]
[1625733923815,0.87065617,32365.0,32364.0,0.1]
[1625733924264,0.87065617,32365.0,32364.0,0.10364303]
[1625733924640,0.33068991,32365.0,32364.0,0.10364303]
[1625733924939,0.24057544,32365.0,32364.0,0.10364303]
[1625733925390,1.24057544,32365.0,32364.0,0.10364303]
[1625733925693,0.24057544,32365.0,32364.0,0.10364303]
[1625733925993,0.33087999,32365.0,32364.0,0.10364303]
[1625733926369,0.24057544,32365.0,32364.0,0.1]
[1625733926672,0.33088797,32365.0,32364.0,0.1]
[1625733926817,0.24057544,32365.0,32364.0,0.1]
[1625733928019,0.33095198,32365.0,32364.0,0.1]
[1625733928397,0.51152389,32365.0,32364.0,0.1]
[1625733928621,0.33095198,32365.0,32364.0,0.1]
[1625733929295,0.51155404,32365.0,32364.0,0.1]
[1625733929747,0.87255972,32365.0,32364.0,0.1]
[1625733930878,0.76216404,32365.0,32364.0,0.1]
[1625733931325,1.12371343,32365.0,32364.0,0.1]
[1625733931625,1.39486581,32365.0,32364.0,0.1]
[1625733932000,1.03331642,32365.0,32364.0,0.1]
[1625733932233,1.39569175,32365.0,32364.0,0.1]
[1625733933202,1.75842092,32365.0,32364.0,0.1]
[1625733933505,1.85062092,32365.0,32364.0,0.1]
[1625733934704,1.75842092,32365.0,32364.0,0.1]
[1625733934854,2.75842092,32365.0,32364.0,0.1]
[1625733935532,2.75842092,32365.0,32364.0,0.10910761]
[1625733935833,4.34557406,32365.0,32364.0,0.00910761]
[1625733936134,7.06051765,32365.0,32352.0,0.29757544]
[1625733936281,0.63378291,32357.0,32352.0,0.24057544]
[1625733936430,0.95451291,32357.0,32352.0,0.24057544]
[1625733936582,0.63356553,32356.0,32353.0,0.01275284]
[1625733936731,5.0833,32354.0,32353.0,0.01275284]
[1625733936881,5.0833,32354.0,32353.0,0.47623084]
[1625733937482,5.80502632,32354.0,32353.0,0.47623084]
[1625733940261,5.80502632,32354.0,32353.0,0.57623084]
[1625733945866,5.56445088,32354.0,32353.0,0.57623084]
[1625733945979,0.48115088,32354.0,32353.0,0.57623084]
[1625733946123,0.48115088,32354.0,32353.0,0.58534216]
[1625733946863,0.48115088,32354.0,32353.0,0.57623084]
[1625733957849,0.48115088,32354.0,32353.0,0.11275284]
[1625733958049,0.48115088,32354.0,32353.0,0.01275284]
[1625733958152,1.48115088,32354.0,32353.0,0.01275284]
[1625733958308,0.48115088,32354.0,32346.0,0.01275424]
[1625733958436,1.48115088,32354.0,32346.0,0.01275424]
[1625733958585,2.02335554,32354.0,32353.0,0.01275463]
[1625733958735,2.02307817,32354.0,32347.0,0.01275487]
[1625733959040,4.4841,32348.0,32345.0,0.01275487]
[1625733959213,4.78593,32348.0,32345.0,0.01275487]
[1625733959486,1.0,32346.0,32345.0,0.01275487]
[1625733959637,1.72172632,32346.0,32341.0,0.01275627]
[1625733959938,1.72172632,32346.0,32345.0,0.01275659]
[1625733960084,1.72172632,32346.0,32342.0,0.01275656]
[1625733960387,1.72172632,32346.0,32341.0,0.47752348]
[1625733960689,1.72172632,32346.0,32342.0,0.01275676]
[1625733961287,1.72172632,32346.0,32341.0,0.01275643]
[1625733961438,0.72172632,32346.0,32343.0,0.01275694]
[1625733961738,0.24057544,32344.0,32343.0,0.01275694]
[1625733962113,0.24057544,32344.0,32341.0,0.01275691]
[1625733962413,0.24057544,32344.0,32343.0,0.01275729]
[1625733962713,0.24057544,32344.0,32342.0,0.01275742]
[1625733962864,1.24057544,32344.0,32343.0,0.003645]
[1625733963014,1.24057544,32344.0,32343.0,0.01275751]
[1625733963165,0.24057544,32344.0,32332.0,0.01275748]
[1625733963465,0.24057544,32344.0,32333.0,0.00911527]
[1625733963766,0.48115088,32334.0,32333.0,0.00911527]
[1625733964216,0.48115088,32334.0,32333.0,0.48087973]
[1625733964366,0.48115088,32334.0,32333.0,0.47176446]
[1625733964517,0.48115088,32334.0,32333.0,0.58087975]
[1625733964817,0.48115088,32334.0,32333.0,0.59910483]
[1625733967820,0.48115088,32334.0,32333.0,0.83968027]
[1625733970227,0.24057544,32340.0,32333.0,0.83968027]
[1625733970406,0.24057544,32340.0,32334.0,0.00911443]
[1625733970538,0.24057544,32340.0,32335.0,0.0919]
[1625733970677,0.24057544,32340.0,32336.0,0.0091139]
[1625733970830,0.24057544,32340.0,32336.0,0.02186936]
[1625733971125,0.24057544,32340.0,32337.0,0.46710761]
[1625733971276,0.24057544,32340.0,32338.0,0.00911347]
[1625733971426,0.24057544,32340.0,32339.0,0.0915]
[1625733971578,0.24057544,32340.0,32339.0,0.57447466]
[1625733971728,0.24057544,32340.0,32339.0,1.05562554]
[1625733971878,0.24057544,32340.0,32339.0,1.17384591]
[1625733973904,0.24057544,32340.0,32339.0,1.08234591]
[1625733974729,0.994,32347.0,32339.0,1.08234591]
[1625733974880,0.24057544,32350.0,32339.0,1.17604591]
[1625733975031,0.24057544,32350.0,32340.0,0.04008609]
[1625733975179,0.24057544,32350.0,32341.0,0.00911282]
[1625733975331,0.24057544,32350.0,32341.0,0.48578257]
[1625733975481,0.24057544,32350.0,32343.0,5.4055]
[1625733975630,0.24057544,32350.0,32343.0,5.41461268]
[1625733975781,0.24057544,32350.0,32343.0,6.11087012]
[1625733975932,0.24057544,32350.0,32343.0,6.12362368]
[1625733979010,0.24057544,32350.0,32343.0,6.11087012]
[1625733979160,0.24057544,32350.0,32343.0,6.12362401]
[1625733981939,0.24057544,32350.0,32343.0,6.14184373]
[1625733982240,0.24057544,32350.0,32344.0,0.00911268]
[1625733982391,0.27046698,32355.0,32344.0,0.04008482]
[1625733982541,0.09022033,32355.0,32345.0,0.466217]
[1625733982691,0.09022033,32355.0,32345.0,0.48808256]
[1625733982845,1.23412913,32356.0,32354.0,0.1]
[1625733982993,0.51114363,32356.0,32354.0,0.44216]
[1625733983141,0.51114363,32356.0,32355.0,0.46275]
[1625733983292,0.24057544,32356.0,32355.0,0.46639356]
[1625733983592,0.24057544,32356.0,32355.0,0.5755024]
[1625733983895,0.24057544,32356.0,32355.0,0.81607784]
[1625733987120,0.27071786,32358.0,32355.0,0.81607784]
[1625733987271,0.09030874,32358.0,32355.0,0.81607784]
[1625733987571,0.63167663,32359.0,32356.0,0.01275232]
[1625733987871,0.09037749,32359.0,32358.0,0.24057544]
[1625733988024,0.33111517,32364.0,32358.0,0.34057544]
[1625733988173,0.33111517,32364.0,32359.0,0.00910957]
[1625733988322,0.24057544,32364.0,32359.0,0.02185944]
[1625733988473,0.24057544,32364.0,32360.0,0.00910957]
[1625733988622,0.24057544,32364.0,32360.0,0.47953827]
[1625733988772,0.24057544,32364.0,32363.0,0.1]
[1625733988922,0.24057544,32364.0,32363.0,0.33252]
[1625733989073,0.24057544,32364.0,32363.0,0.79374]
[1625733989223,0.24057544,32364.0,32363.0,0.80648955]
[1625733989373,0.63309278,32366.0,32363.0,0.80648955]
[1625733989522,0.63309278,32366.0,32365.0,4.1898]
[1625733989677,0.09054546,32366.0,32365.0,4.1898]
[1625733989822,0.09054546,32366.0,32365.0,5.13435588]
[1625733989972,0.09059803,32367.0,32365.0,5.14710464]
[1625733990123,0.09059803,32367.0,32365.0,5.24710464]
[1625733990273,0.51220447,32368.0,32365.0,5.24710464]
[1625733990423,0.09054986,32367.0,32366.0,0.00364259]
[1625733990723,0.2714444,32367.0,32366.0,0.00364259]
[1625733990873,0.2714444,32367.0,32366.0,0.11358559]
[1625733991024,0.63304168,32367.0,32366.0,0.11358559]
[1625733991474,0.54249182,32367.0,32366.0,0.11358559]
[1625733991624,0.6329058,32367.0,32366.0,0.11358559]
[1625733992602,0.27130852,32367.0,32366.0,0.11358559]
[1625733993049,0.53921659,32367.0,32366.0,0.11358559]
[1625733993648,0.89880177,32367.0,32366.0,0.11358559]
[1625733993798,1.07866208,32367.0,32366.0,0.11358559]
[1625733994098,0.89880177,32367.0,32366.0,0.11358559]
[1625733994249,1.07858206,32367.0,32366.0,0.11358559]
[1625733994549,0.89880177,32367.0,32366.0,0.11358559]
[1625733994700,0.53934125,32367.0,32366.0,0.11358559]
[1625733996503,1.25721011,32367.0,32366.0,0.11358559]
[1625733996653,1.25721011,32367.0,32366.0,0.01358559]
[1625733997404,2.3340943,32367.0,32366.0,0.01358559]
[1625733997554,3.3340943,32367.0,32366.0,0.00364259]
[1625733997854,3.3340943,32367.0,32359.0,0.00364304]
[1625733998004,3.57466974,32367.0,32359.0,0.00364304]
[1625733998155,0.08990525,32363.0,32358.0,0.24057544]
[1625733998307,0.41259525,32363.0,32358.0,0.24057544]
[1625733998458,0.41259525,32363.0,32360.0,0.00364312]
[1625733998606,0.41259525,32363.0,32359.0,0.46486412]
[1625733998756,0.41259525,32363.0,32361.0,0.462725]
[1625733999058,0.59227661,32363.0,32360.0,0.4663432]
[1625733999207,0.59227661,32363.0,32362.0,0.00364324]
[1625733999356,0.95144481,32363.0,32362.0,0.00364324]
[1625733999508,0.95144481,32363.0,32361.0,0.46949631]
[1625733999656,0.95144481,32363.0,32362.0,0.001011]
[1625733999808,1.22087301,32363.0,32362.0,0.00465435]
[1625733999956,1.46144845,32363.0,32362.0,0.00364335]
[1625734000108,2.10224551,32363.0,32362.0,0.46023535]
[1625734000407,2.10224551,32363.0,32362.0,0.456592]
[1625734000558,2.10224551,32363.0,32362.0,0.46023533]
[1625734000708,2.10224551,32363.0,32362.0,0.00364333]
[1625734001009,2.10224551,32363.0,32362.0,0.45814133]
[1625734002136,2.19219603,32363.0,32362.0,0.55814133]
[1625734002286,1.19219603,32363.0,32362.0,0.55814133]
[1625734002587,1.19219603,32363.0,32362.0,0.10364333]
[1625734002737,1.01238416,32363.0,32362.0,0.00364333]
[1625734002888,3.89514802,32363.0,32362.0,0.00364333]
[1625734003040,5.15016788,32363.0,32362.0,0.00364333]
[1625734003340,5.15016788,32363.0,32359.0,0.00364366]
[1625734003490,1.25489435,32360.0,32358.0,0.24057544]
[1625734003787,1.25489435,32360.0,32359.0,0.00364377]
[1625734003788,0.71705688,32360.0,32359.0,0.00364377]
[1625734003937,1.49537555,32360.0,32359.0,0.00364377]
[1625734004769,1.49537555,32360.0,32359.0,0.10364377]
[1625734006643,1.13676089,32360.0,32359.0,0.10364377]
[1625734007545,0.77831867,32360.0,32359.0,0.10364377]
[1625734007844,1.49500504,32360.0,32359.0,0.10364377]
[1625734008144,1.49500504,32360.0,32359.0,0.00364377]
[1625734008295,2.49500504,32360.0,32359.0,0.00364377]
[1625734008983,2.49500504,32360.0,32359.0,0.10364377]
[1625734009121,2.75038504,32360.0,32359.0,0.10364377]
[1625734009494,1.75038504,32360.0,32359.0,0.10364377]
[1625734009646,1.39248745,32360.0,32359.0,0.10364377]
[1625734010470,1.75038212,32360.0,32359.0,0.10364377]
[1625734010619,1.75038212,32360.0,32359.0,0.00364377]
[1625734011297,2.82438197,32360.0,32359.0,0.00364377]
[1625734011447,3.82438197,32360.0,32359.0,0.00364377]
[1625734011907,1.75038212,32360.0,32359.0,0.00364377]
[1625734012066,1.03369867,32360.0,32359.0,0.10364377]
[1625734012349,1.03406514,32360.0,32359.0,0.10364377]
[1625734012647,1.03406514,32360.0,32359.0,0.00364377]
[1625734012806,1.75053332,32360.0,32359.0,0.00364377]
[1625734013098,1.75053332,32360.0,32358.0,0.24057544]
[1625734013248,1.39228156,32360.0,32358.0,0.24057544]
[1625734013398,1.03365727,32360.0,32359.0,0.00364369]
[1625734013549,0.77827727,32360.0,32359.0,0.00364369]
[1625734013852,1.31647976,32360.0,32359.0,0.00364369]
[1625734013999,0.77877793,32360.0,32359.0,0.10364369]
[1625734014602,0.86860136,32360.0,32359.0,0.10364369]
[1625734014826,0.68914251,32360.0,32359.0,0.10364369]
[1625734015127,0.5098841,32360.0,32359.0,0.10364369]
[1625734015430,0.5098841,32360.0,32359.0,0.1127524]
[1625734015729,0.5098841,32360.0,32359.0,0.3694324]
[1625734016031,0.24057544,32360.0,32359.0,0.8345164]
[1625734020385,0.24057544,32360.0,32359.0,0.84362663]
[1625734020688,0.24057544,32360.0,32359.0,0.8345164]
[1625734021596,0.24057544,32360.0,32359.0,0.84362664]
[1625734022037,0.24057544,32363.0,32359.0,0.84362664]
[1625734022194,0.24057544,32363.0,32360.0,0.00910995]
[1625734022487,0.24057544,32363.0,32360.0,0.02185902]
[1625734022639,0.24057544,32363.0,32361.0,0.461326]
[1625734022788,0.24057544,32363.0,32362.0,0.0935]
[1625734022943,0.24057544,32363.0,32362.0,0.20624899]
[1625734023094,0.62919589,32367.0,32362.0,0.67221299]
[1625734023390,0.27001256,32368.0,32366.0,4.6331]
[1625734023538,0.27001256,32368.0,32366.0,4.95752]
[1625734023691,0.89920296,32369.0,32367.0,0.47251595]
[1625734023692,0.09010302,32369.0,32367.0,0.47251595]
[1625734023840,0.87058322,32370.0,32367.0,0.47251595]
[1625734024142,0.09014537,32369.0,32367.0,0.47251595]
[1625734024289,0.09014537,32369.0,32368.0,0.01274773]
[1625734024589,0.87060214,32370.0,32368.0,0.47232173]
[1625734024741,0.87060214,32370.0,32368.0,0.57232173]
[1625734024966,0.87060214,32370.0,32369.0,0.01274752]
[1625734025266,0.87060214,32370.0,32369.0,0.47256952]
[1625734025415,0.87060214,32370.0,32369.0,0.57256952]
[1625734025718,0.51072962,32370.0,32369.0,0.57256952]
[1625734026017,0.33070344,32370.0,32369.0,0.57256952]
[1625734026168,0.33070344,32370.0,32369.0,0.81314496]
[1625734026694,0.24057544,32370.0,32369.0,0.81314496]
[1625734026842,0.3308876,32370.0,32369.0,0.81314496]
[1625734027294,0.24057544,32370.0,32369.0,0.81314496]
[1625734027593,0.51138215,32370.0,32369.0,0.81314496]
[1625734027743,0.33090444,32370.0,32369.0,0.81314496]
[1625734028193,0.51151146,32370.0,32369.0,0.81314496]
[1625734028418,0.24057544,32370.0,32369.0,0.81314496]
[1625734028719,0.24057544,32370.0,32369.0,0.80403959]
[1625734029169,0.4211271,32370.0,32369.0,0.80403959]
[1625734029323,0.24057544,32370.0,32369.0,0.81314449]
[1625734030301,0.33096545,32370.0,32369.0,0.80403959]
[1625734032783,0.24057544,32370.0,32369.0,0.80403959]
[1625734033539,0.63173716,32372.0,32369.0,0.80403959]
[1625734033834,0.58003716,32372.0,32369.0,0.80403959]
[1625734034021,0.27098761,32373.0,32370.0,0.00364163]
[1625734034156,0.27098761,32373.0,32372.0,0.48115088]
[1625734034289,0.09042638,32374.0,32372.0,0.48115088]
[1625734034436,0.27106941,32375.0,32372.0,0.48479233]
[1625734034599,0.27106941,32375.0,32372.0,0.49526333]
[1625734034741,0.09039714,32375.0,32373.0,0.00364139]
[1625734034885,0.27105733,32376.0,32373.0,0.26751139]
[1625734035034,0.27105733,32376.0,32374.0,0.1]
[1625734035186,0.27105733,32376.0,32374.0,0.564361]
[1625734035341,0.27105733,32376.0,32374.0,0.56800235]
[1625734035484,0.27105733,32376.0,32375.0,5.4895]
[1625734035648,0.27105733,32376.0,32375.0,5.49314131]
[1625734035786,0.27105733,32376.0,32375.0,6.05405431]
[1625734035935,0.09041674,32376.0,32375.0,6.05405431]
[1625734036087,0.09041674,32376.0,32375.0,6.29462975]
[1625734036314,0.27110951,32376.0,32375.0,6.29462975]
[1625734036614,0.27102904,32377.0,32375.0,6.29462975]
[1625734036763,0.27099639,32376.0,32375.0,6.29462975]
[1625734036913,0.27099639,32376.0,32375.0,6.19098844]
[1625734037066,0.09039227,32376.0,32375.0,6.19098844]
[1625734037212,0.09039227,32376.0,32375.0,6.1946298]
[1625734037366,0.09039227,32376.0,32375.0,6.2946298]
[1625734037664,0.54128535,32376.0,32375.0,6.2946298]
[1625734038113,1.26294481,32376.0,32375.0,6.2946298]
[1625734038564,2.34463867,32376.0,32375.0,6.2946298]
[1625734039238,3.60638957,32376.0,32375.0,6.2946298]
[1625734039839,3.60638957,32376.0,32375.0,6.1946298]
[1625734040291,3.60638957,32376.0,32375.0,6.2946298]
[1625734040741,5.04653767,32376.0,32375.0,6.2946298]
[1625734040892,5.04653767,32376.0,32375.0,0.8051298]
[1625734041047,6.04653767,32376.0,32375.0,0.7051298]
[1625734041343,6.04653767,32376.0,32375.0,0.8051298]
[1625734041494,10.39973767,32376.0,32375.0,0.8051298]
[1625734041644,9.39973767,32376.0,32375.0,0.8051298]
[1625734042245,9.39973767,32376.0,32375.0,0.7051298]
[1625734042542,9.39973767,32376.0,32375.0,0.8051298]
[1625734043444,9.39973767,32376.0,32375.0,0.8973298]
[1625734044194,9.39973767,32376.0,32375.0,0.8051298]
[1625734044496,7.95958957,32376.0,32375.0,0.8051298]
[1625734045022,3.60638957,32376.0,32375.0,0.8051298]
[1625734046448,5.04739997,32376.0,32375.0,0.8051298]
[1625734047577,5.04739997,32376.0,32375.0,5.2718298]
[1625734047877,3.60638957,32376.0,32375.0,5.2718298]
[1625734049377,3.60638957,32376.0,32375.0,5.28093486]
[1625734050431,3.60638957,32376.0,32375.0,0.81423486]
[1625734050881,3.60638957,32376.0,32375.0,0.35332186]
[1625734051028,4.60638957,32376.0,32375.0,0.3442168]
[1625734051179,4.60638957,32376.0,32375.0,0.2442168]
[1625734051180,6.0450649,32376.0,32375.0,0.2442168]